[Event "34th MPL National U14-ch 2022"]
[Site "Ahmedabad"]
[Date "2022.05.12"]
[Round "7.4"]
[White "Bharadia Yash"]
[Black "Anubhav Rawat"]
[Result "1-0"]
[ECO "B72"]
[WhiteElo "1924"]
[BlackElo "1329"]
[Annotator "TA"]
[PlyCount "75"]
[EventDate "2022.05.09"]
[EventType "swiss"]
[EventCountry "IND"]
[SourceTitle "playchess.com"]
[Source "ChessBase"]
[SourceQuality "1"]
[TimeControl "5400+30"]

{[%evp 11,75,69,42,38,42,45,29,30,45,27,24,15,56,17,41,52,188,87,109,116,109,113,140,-14,-1,-11,-8,-6,-15,-10,69,59,46,61,65,54,66,66,52,58,115,0,0,0,0,0,0,0,0,0,0,0,213,177,202,204,642,602,29994,29995,29995,29996,29996,12841,29998,29999]} 1. e4 {[%emt 0:06:39]} c5 {[%emt 0:00:05]} 2. Nf3 {[%emt 0:00:08]} d6 {[%emt 0:00:11]} 3. d4 {[%emt 0:00:07]} cxd4 {[%emt 0:00:08]} 4. Nxd4 {[%emt 0:00:04]} Nf6 {[%emt 0:00:09]} 5. Nc3 {[%emt 0:00:08]} g6 {[%emt 0:00:10]} 6. Be3 {[%emt 0:00:06]} a6 {[%emt 0:00:13]} 7. f3 {[%emt 0:00:38] B72: Sicilian Dragon: 6 Be3, lines with h3+Bc4 and sidelines.} b5 {[%emt 0:00:05]} 8. Qd2 {[%emt 0:04:01]} (8. Nd5 {with more complications.} Bg7 9. Nxb5 axb5 10. Bb6) 8... Bb7 {[%emt 0:00:08]} 9. O-O-O {[%emt 0:00:37] White has an edge.} h5 {[%emt 0:01:03] Prevents g4.} 10. Kb1 {[%emt 0:08:11]} Nbd7 {[%emt 0:01:01]} 11. Bd3 {[%emt 0:03:37]} b4 {[%emt 0:20:58] [#]} 12. Na4 $146 {[%emt 0:11:37]} (12. Nd5 $5) ({Predecessor:} 12. Nd5 Bxd5 13. exd5 Nxd5 14. Ne6 Qa5 15. Bd4 Bh6 16. Qe1 N7f6 17. Bc4 fxe6 18. Qxe6 {0-1 (29) Urazayev,A (2429)-Yang,K (2481) Chess.com INT 2021}) 12... Qa5 {[%emt 0:21:51]} 13. b3 {[%emt 0:02:56][%cal Oa2a3]} d5 {[%emt 0:02:56]} (13... e5 $14) 14. Rhe1 {[%emt 0:20:54]} (14. e5 $18 {is more deadly.}) 14... e5 {[%emt 0:12:30] [#]} 15. exd5 $1 {[%emt 0:03:40]} Nxd5 {[%emt 0:07:52] [#]} 16. Bc4 $1 {[%emt 0:08:18][%cal Od4b5]} Nxe3 {[%emt 0:03:56]} (16... Be7 17. Nc6) 17. Rxe3 {[%emt 0:01:24]} (17. Qxe3 $16 {[%cal Od4e6] Black must now prevent Ne6!} Qc7 18. f4) 17... O-O-O $1 $11 {[%emt 0:02:13]} 18. Bxf7 {[%emt 0:13:19]} exd4 {[%emt 0:05:46]} 19. Qxd4 {[%emt 0:00:04]} Bc5 {[%emt 0:04:51]} 20. Qc4 {[%emt 0:00:06] Hoping for Be6.} Kb8 {[%emt 0:01:44]} (20... Qc7 $11 21. Nxc5 Nxc5) 21. Red3 $14 {[%emt 0:00:37][%mdl 64] Deflection. White is more active.} Ne5 {[%emt 0:05:02][%csl LRc4,LRd3]} 22. Qxc5 {[%emt 0:03:14]} ({Of course not} 22. Rxd8+ Rxd8 23. Rxd8+ Qxd8 24. Qxc5 Nxf7 $11) 22... Rxd3 {[%emt 0:00:47]} 23. Qxa5 {[%emt 0:00:17] Chess con chili.} Rxd1+ {[%emt 0:00:20]} 24. Kb2 {[%emt 0:00:01]} Nxf7 {[%emt 0:01:06]} 25. Qxb4 {[%emt 0:00:39] aiming for Qf4+.} Ka8 {[%emt 0:01:14] [#]} (25... Rc8 $14) 26. Nc5 {[%emt 0:01:14]} (26. Qe7 $1 $16 {[%cal Re7f7]} Nd6 27. Qf6) 26... Nd6 $11 {[%emt 0:01:43]} 27. a4 {[%emt 0:00:52]} Rc8 {[%emt 0:01:40]} 28. Nd3 {[%emt 0:00:06]} Nf5 {[%emt 0:00:45]} 29. Qf4 {[%emt 0:03:30] Prevents Ne3.} Rg1 {[%emt 0:01:05]} 30. g4 {[%emt 0:00:05]} hxg4 {[%emt 0:00:43]} 31. fxg4 {[%emt 0:00:03]} Nh4 {[%emt 0:02:09] [#]} (31... Rg2 $1 $11 32. Ne1 (32. gxf5 Rcxc2+ 33. Ka3 a5 $11) 32... Rg1 33. gxf5 Rxe1 34. fxg6 Rg1) 32. Qb4 $1 $18 {[%emt 0:01:21]} Rg2 {[%emt 0:01:02]} 33. Nc5 {[%emt 0:00:04][%csl Gc5][%cal Rb4b7]} Bf3 {[%emt 0:01:34]} (33... Rxc5 34. Qxc5 Rxg4) 34. Qb6 {[%emt 0:01:45]} Rxg4 {[%emt 0:00:00]} 35. Qxa6+ {[%emt 0:00:04]} Kb8 {[%emt 0:00:00]} 36. Qb6+ {[%emt 0:00:09]} Ka8 {[%emt 0:00:08]} 37. Nd7 {[%emt 0:00:04]} (37. Qa5+ $142 Kb8 38. Nd7+ Kb7 39. Qb6+ Ka8 40. Qa6#) 37... Bb7 {[%emt 0:01:06]} 38. Qa5+ {[%emt 0:00:05] Weighted Error Value: White=0.17 (very precise) /Black=0.72} 1-0

[Event "34th MPL National U14-ch 2022"]
[Site "Ahmedabad"]
[Date "2022.05.12"]
[Round "7.5"]
[White "Aswath S"]
[Black "Koustuv Dash"]
[Result "1/2-1/2"]
[ECO "B15"]
[WhiteElo "1694"]
[BlackElo "1910"]
[Annotator "TA"]
[PlyCount "80"]
[EventDate "2022.05.09"]
[EventType "swiss"]
[EventCountry "IND"]
[SourceTitle "playchess.com"]
[Source "ChessBase"]
[SourceQuality "1"]
[TimeControl "5400+30"]

{[%evp 15,80,10,14,10,16,7,41,0,8,6,0,0,0,0,0,0,12,10,29,0,0,0,30,20,23,0,23,0,16,0,8,0,37,63,122,124,123,115,116,128,210,90,81,38,40,41,34,45,39,43,54,0,50,36,76,0,35,21,25,17,17,15,14,0,18,0,3]} 1. e4 {[%emt 0:00:04]} c6 {[%emt 0:00:36]} 2. d4 {[%emt 0:00:06]} d5 {[%emt 0:00:06]} 3. Nc3 {[%emt 0:00:05]} dxe4 {[%emt 0:00:04]} 4. Nxe4 {[%emt 0:00:08]} Nf6 {[%emt 0:00:05]} 5. Nxf6+ {[%emt 0:00:07]} exf6 {[%emt 0:00:06]} 6. Nf3 {[%emt 0:00:19]} Bd6 {[%emt 0:00:07]} 7. Bd3 {[%emt 0:00:09] 7.Bd3 scores better than 7.Be2.} O-O {[%emt 0:00:09]} 8. O-O {[%emt 0:00:03]} Re8 {[%emt 0:00:12]} 9. h3 {[%emt 0:00:43] B15: Caro-Kann: 3 Nc3: 3...g6 and 3...dxe4 4 Nxe4 Nf6 5 Nxf6+ exf6.} Nd7 {[%emt 0:00:07][%cal Bb8d7,Bd7f8,Bf8g6][%mdl 32]} 10. Re1 {[%emt 0:01:02]} Nf8 {[%emt 0:00:12]} 11. Be3 {[%emt 0:02:29] White is slightly better.} Ng6 {[%emt 0:00:13]} 12. c4 {[%emt 0:01:25]} Be6 {[%emt 0:00:43] [#]} 13. Rc1 $146 {[%emt 0:23:37]} ({Predecessor:} 13. Qd2 Qd7 14. Bf1 Bf5 15. Rad1 Rad8 16. a3 Be4 17. Nh2 Qc7 18. Nf3 Bxf3 19. gxf3 Nh4 {0-1 (101) Moussard,J (2630)-Svane,R (2648) Chess.com INT 2022}) 13... Qd7 {[%emt 0:02:03]} 14. a3 {[%emt 0:03:12]} a5 {[%emt 0:04:43]} 15. a4 {[%emt 0:02:21][%cal Od4d5]} Bb4 {[%emt 0:08:30]} 16. Bd2 {[%emt 0:02:24]} Bf8 {[%emt 0:09:03]} 17. b3 {[%emt 0:02:35]} Ba3 {[%emt 0:06:28]} 18. Rc2 {[%emt 0:01:05]} Ne7 {[%emt 0:01:13]} 19. Bc3 {[%emt 0:01:56]} Ng6 {[%emt 0:05:17]} 20. Bd2 {[%emt 0:00:55]} Ne7 {[%emt 0:01:54]} 21. Bc3 {[%emt 0:00:24]} Ng6 $1 {[%emt 0:04:48]} 22. Bd2 {[%emt 0:00:30]} Bd6 {[%emt 0:01:49]} 23. d5 {[%emt 0:08:48]} cxd5 {[%emt 0:02:39]} (23... Bxh3 $5 24. gxh3 Qxh3 25. Bxg6 Qg4+ 26. Kh1 Qh3+ 27. Kg1 Qg4+ 28. Kh1 Qh3+ 29. Kg1 $11) 24. c5 {[%emt 0:00:25] [#] Threatens to win with Bb5.} Bf8 {[%emt 0:09:11]} (24... Be5 $14) 25. Bb5 $16 {[%emt 0:00:20] 0x0.0026dcb9a76bdp-1022s more active pieces.} Qc7 {[%emt 0:00:01]} 26. Bxe8 {[%emt 0:00:34]} Rxe8 {[%emt 0:00:02]} 27. Nd4 {[%emt 0:08:40]} Bxc5 {[%emt 0:02:21] [#]} (27... Ne5 $16 {was called for.}) 28. Nb5 {[%emt 0:04:25]} (28. b4 $1 $18 {and White stays clearly on top.} axb4 29. Bxb4) 28... Qb6 {[%emt 0:01:19]} 29. Bxa5 {[%emt 0:00:52]} Bxf2+ {[%emt 0:00:26]} 30. Rxf2 {[%emt 0:00:06]} Qxa5 {[%emt 0:00:05]} 31. Qd2 {[%emt 0:01:44]} Qb6 {[%emt 0:00:45]} 32. Qd4 {[%emt 0:00:44][%mdl 1024] White has compensation.} Qa5 {[%emt 0:00:43]} 33. Qd2 {[%emt 0:09:50]} Qb6 {[%emt 0:02:16]} 34. Qe3 {[%emt 0:05:21]} Qa5 {[%emt 0:00:29]} 35. Qd2 {[%emt 0:00:10]} Qb6 {[%emt 0:00:07]} 36. Kh1 {[%emt 0:05:31]} Ne5 {[%emt 0:00:38][%cal Oe5d3] ...Nd3! is the strong threat.} 37. Rfe2 {[%emt 0:01:42]} Rd8 {[%emt 0:00:45] The position is equal.} 38. Qd4 {[%emt 0:01:05]} Qa5 {[%emt 0:00:56]} 39. Qd2 {[%emt 0:02:07]} Qb6 {[%emt 0:02:11]} 40. Qd4 {[%emt 0:00:30]} Qa5 {[%emt 0:00:05] Weighted Error Value: White=0.17 (very precise) /Black=0.10 (very precise)} 1/2-1/2

[Event "34th MPL National U14-ch 2022"]
[Site "Ahmedabad"]
[Date "2022.05.12"]
[Round "7.6"]
[White "Jval Saurin Patel"]
[Black "Shaik Sumer Arsh"]
[Result "0-1"]
[ECO "E25"]
[WhiteElo "1712"]
[BlackElo "1999"]
[Annotator "TA"]
[PlyCount "122"]
[EventDate "2022.05.09"]
[EventType "swiss"]
[EventCountry "IND"]
[SourceTitle "playchess.com"]
[Source "ChessBase"]
[SourceQuality "1"]
[TimeControl "5400+30"]

{[%evp 20,122,10,0,0,-14,46,52,64,73,62,48,47,39,75,68,77,0,10,-55,-14,-11,-4,-226,-219,-217,-235,-231,-162,-228,-219,-219,-211,-218,-195,-210,-195,-363,-363,-541,-200,-202,-199,-214,-187,-195,-185,-252,-173,-193,-187,-200,-148,-156,-143,-139,-138,-187,-165,-167,-139,-145,0,-168,-138,-681,-182,-1280,-1269,-6418,-6422,-6418,-6413,-6361,-6331,-6029,-6029,-6199,-7137,-6498,-6448,-6183,-6101,-29980,-29981,-29978,-29979,-29982,-29983,-29985,-29986,-29986,-29987,-29988,-29989,-29989,-29990,-29990,-29990,-29994,-29995,-29996,-29997,-29997,-5114]} 1. d4 {[%emt 0:00:11]} Nf6 {[%emt 0:00:06]} 2. c4 {[%emt 0:00:06]} e6 {[%emt 0:00:05]} 3. Nc3 {[%emt 0:00:05]} Bb4 {[%emt 0:00:05]} 4. f3 {[%emt 0:00:06]} d5 {[%emt 0:00:28]} 5. a3 {[%emt 0:00:07]} Bxc3+ {[%emt 0:00:09]} 6. bxc3 {[%emt 0:00:06]} c5 {[%emt 0:00:17]} 7. cxd5 {[%emt 0:00:27]} Nxd5 {[%emt 0:00:27]} 8. dxc5 {[%emt 0:00:13]} Qa5 {[%emt 0:03:30]} 9. e4 {[%emt 0:00:43]} Nf6 {[%emt 0:01:46]} 10. Be3 {[%emt 0:01:04]} O-O {[%emt 0:01:03]} 11. Qb3 {[%emt 0:02:33]} Qc7 {[%emt 0:01:03] E25: Nimzo-Indian: Sämisch: 5...c5 6 f3 d5 7 cxd5.} 12. Ne2 {[%emt 0:21:33] [#]} e5 $146 {[%emt 0:16:42] Against Nf4} (12... Nfd7 $1 $11) ({Predecessor:} 12... Nfd7 13. Nd4 Nxc5 14. Qc4 b6 15. Nb5 Qc6 16. Rd1 Nbd7 17. Be2 Ba6 18. O-O Ne5 19. Qb4 {0-1 (33) Abdalla,L (2230)-Mareco,S (2503) Sao Jose dos Pinhais 2010}) 13. c4 $14 {[%emt 0:01:25]} Na6 {[%emt 0:03:45] White is slightly better.} 14. Nc3 {[%emt 0:01:10]} Nxc5 {[%emt 0:07:11]} 15. Qc2 {[%emt 0:00:33]} Bd7 {[%emt 0:13:10]} 16. Be2 {[%emt 0:02:38]} Qa5 {[%emt 0:10:48]} 17. O-O {[%emt 0:02:43]} Rfc8 {[%emt 0:03:05]} 18. f4 {[%emt 0:04:52]} (18. Qb2 $16) 18... Bg4 $11 {[%emt 0:10:45]} 19. Bf3 {[%emt 0:20:59]} (19. fxe5 $11 Bxe2 20. Qxe2) 19... Bxf3 {[%emt 0:00:43]} (19... exf4 {with more complications.} 20. e5 fxe3 21. exf6 Bxf3 22. Rxf3 Ne6) 20. Rxf3 {[%emt 0:00:01]} Ne6 {[%emt 0:01:14] Pair of Knights!} 21. fxe5 $2 {[%emt 0:01:31]} (21. Nd5 $11 {and White stays safe.}) 21... Qxe5 $19 {[%emt 0:00:41]} 22. Qd3 {[%emt 0:24:35]} Rd8 {[%emt 0:03:54]} ({Not} 22... Ng4 23. Rg3 Rd8 24. Qf1 $17) 23. Qc2 {[%emt 0:00:34]} Ng4 {[%emt 0:06:08]} 24. g3 {[%emt 0:01:05]} (24. Rg3 {might work better.} Nxe3 25. Rxe3) 24... Nd4 {[%emt 0:15:25]} 25. Bxd4 {[%emt 0:00:35]} Qxd4+ {[%emt 0:00:00]} ({And not} 25... Rxd4 26. Qe2 Qc5 27. Kh1) 26. Kh1 {[%emt 0:00:13]} Ne3 {[%emt 0:00:00]} 27. Qc1 {[%emt 0:02:57]} Nxc4 {[%emt 0:00:00]} 28. Qe1 {[%emt 0:01:15]} (28. Qg1 {is the only way for White.}) 28... Ne5 {[%emt 0:00:00]} 29. Re3 {[%emt 0:00:21]} (29. Rf1 $142) 29... Ng4 $2 {[%emt 0:00:00]} (29... Nd3 30. Rxd3 Qxd3) 30. Re2 {[%emt 0:00:24]} Rac8 {[%emt 0:00:00]} 31. Rd1 {[%emt 0:00:16]} Qc5 {[%emt 0:00:00]} 32. Nd5 {[%emt 0:02:29]} Re8 {[%emt 0:00:00]} 33. Qf1 {[%emt 0:01:54]} (33. h3 $142 Ne5 34. Qb4) 33... Qc4 {[%emt 0:00:00]} ({But not} 33... Qxa3 $2 34. Kg2 $19) 34. Rde1 {[%emt 0:01:50]} Rc6 {[%emt 0:00:36]} 35. Qf4 {[%emt 0:00:34]} Nf6 {[%emt 0:00:15]} 36. Qg5 {[%emt 0:00:51]} Rce6 {[%emt 0:00:28] [#] Threatens to win with ...Nxd5.} 37. Nxf6+ {[%emt 0:01:14]} Rxf6 {[%emt 0:00:01]} 38. e5 {[%emt 0:00:49]} (38. Qd5 $17 {was called for.} Qc7 39. Rd2) 38... Qd5+ {[%emt 0:00:53]} 39. Kg1 {[%emt 0:00:31][%cal Oe5f6]} Qd4+ {[%emt 0:00:01]} 40. Kg2 {[%emt 0:00:37]} Qd5+ {[%emt 0:00:11]} 41. Kg1 {[%emt 0:00:05][%cal Oe5f6]} Qc5+ {[%emt 0:00:01]} 42. Re3 $2 {[%emt 0:00:58][%mdl 8192]} (42. Qe3 $17 Qxe3+ 43. Rxe3) 42... Rfe6 $2 {[%emt 0:00:00]} (42... Rf3 43. Kg2 {[#]} h6 $1 {[%mdl 512]} 44. Qxh6 gxh6 45. Kxf3 Qd5+ 46. Kf2 Kg7) 43. Qf4 $2 {[%emt 0:00:17]} (43. Kh1) 43... Rxe5 {[%emt 0:00:15]} 44. Kf2 {[%emt 0:00:22]} Rxe3 {[%emt 0:00:02]} 45. Rxe3 {[%emt 0:00:08]} Qxe3+ {[%emt 0:00:02]} 46. Qxe3 {[%emt 0:00:01]} Rxe3 {[%emt 0:00:01]} 47. Kxe3 {[%emt 0:00:17][%mdl 4096] Endgame KP-KP} f5 {[%emt 0:00:23] Strongly threatening ...Kf7.} 48. Kd4 {[%emt 0:00:07]} Kf7 {[%emt 0:00:03] ...g6 is the strong threat.} 49. Ke5 {[%emt 0:00:06]} g6 {[%emt 0:00:02]} 50. h3 {[%emt 0:00:07]} Ke7 {[%emt 0:00:09]} 51. g4 {[%emt 0:00:05]} fxg4 {[%emt 0:00:03] Black mates.} 52. hxg4 {[%emt 0:00:06]} h5 {[%emt 0:00:03]} 53. gxh5 {[%emt 0:00:07]} gxh5 {[%emt 0:00:02]} 54. Kf5 {[%emt 0:00:01]} b5 {[%emt 0:00:01]} 55. Kg5 {[%emt 0:00:09]} a5 {[%emt 0:00:00]} 56. Kxh5 {[%emt 0:00:01]} b4 {[%emt 0:00:10]} 57. axb4 {[%emt 0:00:07]} axb4 {[%emt 0:00:01]} 58. Kg6 {[%emt 0:00:09]} b3 {[%emt 0:00:03]} 59. Kh7 {[%emt 0:00:07]} b2 {[%emt 0:00:03]} 60. Kg7 {[%emt 0:00:07]} b1=Q {[%emt 0:14:11]} 61. Kh8 {[%emt 0:00:07]} Qg1 {[%emt 0:00:00] Weighted Error Value: White=0.88/Black=0.51} (61... Kf6 $142 62. Kg8 Qg6+ 63. Kh8 Qg7#) 0-1

[Event "34th MPL National U14-ch 2022"]
[Site "Ahmedabad"]
[Date "2022.05.12"]
[Round "7.7"]
[White "Sahib Singh"]
[Black "Agarwal Mukund H"]
[Result "1/2-1/2"]
[ECO "B25"]
[WhiteElo "1991"]
[BlackElo "1696"]
[Annotator "TA"]
[PlyCount "62"]
[EventDate "2022.05.09"]
[EventType "swiss"]
[EventCountry "IND"]
[SourceTitle "playchess.com"]
[Source "ChessBase"]
[SourceQuality "1"]
[TimeControl "5400+30"]

{[%evp 20,62,-15,-7,0,-55,-43,-168,-158,-163,-108,-108,-108,-108,-108,-109,-113,-118,-71,-82,-50,-49,-48,-42,-35,-75,-72,-70,-50,-56,-50,-52,0,0,8,-20,15,-23,35,0,0,0,0,-8,0]} 1. e4 {[%emt 0:00:02]} c5 {[%emt 0:00:23]} 2. Nc3 {[%emt 0:00:05]} Nc6 {[%emt 0:00:25]} 3. f4 {[%emt 0:00:05]} g6 {[%emt 0:00:12]} 4. Nf3 {[%emt 0:00:12]} Bg7 {[%emt 0:00:04]} 5. g3 {[%emt 0:00:04]} d6 {[%emt 0:00:39]} 6. Bg2 {[%emt 0:00:05]} e6 {[%emt 0:00:12]} 7. O-O {[%emt 0:00:07]} Nge7 {[%emt 0:00:02]} 8. d3 {[%emt 0:00:05]} O-O {[%emt 0:00:11]} 9. Be3 {[%emt 0:00:12]} Nd4 {[%emt 0:01:52] 9...b6 might become the main line.} 10. e5 {[%emt 0:04:40]} Nef5 {[%emt 0:01:15]} 11. Bf2 $1 {[%emt 0:00:13]} Nxf3+ {[%emt 0:00:39] B25: Closed Sicilian: 3 g3, lines without early Be3.} (11... Bd7 {seems wilder.} 12. Ne4 Nxf3+ 13. Bxf3 Bc6) 12. Bxf3 {[%emt 0:00:15]} (12. Qxf3 $11 Qb6 13. Rab1) 12... dxe5 {[%emt 0:00:40]} 13. Bxc5 {[%emt 0:01:08]} (13. fxe5 $15 Bxe5 14. Bxc5) 13... exf4 $19 {[%emt 0:04:52] Black is clearly better.} 14. Bxf8 {[%emt 0:03:24]} Bd4+ {[%emt 0:01:10]} ({Better is} 14... Qb6+ $19 15. Kh1 Kxf8) 15. Kh1 $17 {[%emt 0:00:04] [#] And now Ba3 would win.} Qxf8 {[%emt 0:00:37] [#]} 16. gxf4 $146 {[%emt 0:18:18]} ({Predecessor:} 16. Be4 Qh6 17. gxf4 Ng3+ 18. Kg2 e5 19. f5 Nxf1 20. Qxf1 gxf5 21. Bd5 Be6 22. Kh1 {0-1 (35) Pralgauskas,S (2129)-Dzjuba,V (2279) Plateliai 2000}) 16... Ne3 {[%emt 0:01:29][%csl LRd1,LRf1]} 17. Qe2 {[%emt 0:02:47]} Nxf1 {[%emt 0:00:09]} 18. Rxf1 {[%emt 0:00:05]} Rb8 {[%emt 0:07:24]} (18... Qb4 $142 19. Nd1 Bxb2 20. Nxb2 Qxb2) 19. Ne4 {[%emt 0:02:59]} Bd7 {[%emt 0:02:14]} 20. c3 {[%emt 0:00:10]} Bg7 {[%emt 0:00:23]} 21. d4 {[%emt 0:00:17]} Qc8 {[%emt 0:09:53]} 22. Qg2 {[%emt 0:19:21]} b6 {[%emt 0:02:14]} 23. Ng5 {[%emt 0:21:36]} h6 {[%emt 0:08:42]} 24. Ne4 {[%emt 0:01:12][%cal Bg5e4,Be4f2,Bf2g4][%mdl 32]} Qc7 {[%emt 0:02:18]} 25. Qg3 {[%emt 0:04:29]} Qc4 {[%emt 0:03:22]} (25... Bb5 $15 26. Re1 h5) 26. Rg1 $11 {[%emt 0:07:16][%cal Of4f5]} Qc7 {[%emt 0:11:10]} 27. Nf2 {[%emt 0:05:42]} Kh7 {[%emt 0:03:38]} 28. Ng4 {[%emt 0:02:12]} Qd6 {[%emt 0:05:00]} (28... Bc6 $11) 29. f5 {[%emt 0:04:51]} Qxg3 {[%emt 0:00:30] The position is equal.} 30. fxg6+ {[%emt 0:00:03]} fxg6 {[%emt 0:00:20]} 31. Rxg3 {[%emt 0:00:05]} Rf8 {[%emt 0:01:57] White happily takes the draw.  Weighted Error Value: White=0.25 (precise) /Black=0.20 (precise)} 1/2-1/2

[Event "34th MPL National U14-ch 2022"]
[Site "Ahmedabad"]
[Date "2022.05.12"]
[Round "7.8"]
[White "Reyan"]
[Black "Ankit Ray"]
[Result "1/2-1/2"]
[ECO "B30"]
[WhiteElo "1590"]
[BlackElo "1932"]
[Annotator "TA"]
[PlyCount "72"]
[EventDate "2022.05.09"]
[EventType "swiss"]
[EventCountry "IND"]
[SourceTitle "playchess.com"]
[Source "ChessBase"]
[SourceQuality "1"]
[TimeControl "5400+30"]

{[%evp 11,72,8,57,59,51,42,60,56,63,59,52,60,52,40,52,50,62,52,66,73,70,73,66,81,72,11,71,0,68,45,38,39,44,31,61,53,73,70,77,6,16,0,11,0,0,0,15,0,0,0,0,0,0,0,0,0,0,1,7,0,0,0,0]} 1. e4 {[%emt 0:00:13]} c5 {[%emt 0:00:26]} 2. Nc3 {[%emt 0:00:04]} e6 {[%emt 0:00:24]} 3. Nf3 {[%emt 0:00:09]} Nc6 {[%emt 0:00:21]} 4. Bb5 {[%emt 0:00:16]} Nd4 {[%emt 0:02:40]} 5. O-O {[%emt 0:00:41]} a6 {[%emt 0:02:42]} 6. Bd3 {[%emt 0:00:36]} d6 {[%emt 0:04:00]} (6... Nxf3+ $11 7. Qxf3 Bd6) 7. Nxd4 $14 {[%emt 0:01:16] B30: Sicilian: 2...Nc6 3 Bb5, lines without ...g6.} cxd4 {[%emt 0:00:03]} 8. Ne2 {[%emt 0:00:21]} e5 {[%emt 0:00:13]} 9. c3 {[%emt 0:00:16] White is slightly better.} dxc3 {[%emt 0:00:15]} 10. dxc3 {[%emt 0:00:42]} Nf6 {[%emt 0:01:39]} 11. c4 {[%emt 0:06:07]} Be7 {[%emt 0:02:48] [#]} 12. f3 $146 {[%emt 0:00:27]} ({Predecessor:} 12. Nc3 Be6 13. b3 O-O 14. Qe2 Rc8 15. Bb2 Qb6 16. Kh1 Nd7 17. Rad1 g6 18. Bb1 {1-0 (43) Stukopin,A (2555)-Ginsburg,M (2315) Redmond 2021}) 12... Qb6+ {[%emt 0:07:24]} 13. Kh1 {[%emt 0:00:23]} Be6 {[%emt 0:00:31]} 14. Nc3 {[%emt 0:00:29]} h5 {[%emt 0:00:56]} 15. Qe2 {[%emt 0:01:06]} h4 {[%emt 0:02:38]} 16. Be3 {[%emt 0:00:20]} Qd8 {[%emt 0:01:23]} 17. Rfd1 {[%emt 0:00:59]} Nh5 {[%emt 0:02:24]} 18. Kg1 {[%emt 0:02:08]} (18. Qd2 $16) 18... Kf8 {[%emt 0:08:46]} (18... Rc8 $11 {remains equal.}) 19. Bc2 {[%emt 0:09:48]} (19. Qd2 $16) 19... Qc7 {[%emt 0:10:38]} (19... Nf4 $11 20. Qf1 Kg8) 20. Nd5 {[%emt 0:02:41]} Bxd5 {[%emt 0:00:21]} 21. Rxd5 {[%emt 0:00:39]} Rc8 {[%emt 0:01:39]} 22. Bb3 {[%emt 0:02:10]} Nf6 {[%emt 0:01:30]} 23. Rd2 {[%emt 0:01:06] White is more active.} Nd7 {[%emt 0:00:09]} 24. Rad1 {[%emt 0:02:29]} Nc5 {[%emt 0:00:07]} 25. Bxc5 {[%emt 0:04:23]} (25. Rd5 $16) 25... Qxc5+ $11 {[%emt 0:02:29] The position is equal.} 26. Qf2 {[%emt 0:04:34]} g6 {[%emt 0:01:27]} 27. Qxc5 {[%emt 0:01:03]} Rxc5 {[%emt 0:00:03]} 28. Rd5 {[%emt 0:00:30]} Rc7 {[%emt 0:00:11]} 29. c5 {[%emt 0:08:12]} Rxc5 {[%emt 0:01:41]} 30. Rxc5 {[%emt 0:00:14]} dxc5 {[%emt 0:00:05][%mdl 4096] Endgame KRB-KRB} 31. Rd7 {[%emt 0:00:05]} b5 {[%emt 0:00:11]} 32. Bd5 {[%emt 0:00:13]} g5 {[%emt 0:15:00]} 33. Ra7 {[%emt 0:01:13]} Rh6 {[%emt 0:00:47]} 34. Ra8+ {[%emt 0:00:10]} Kg7 {[%emt 0:00:06]} 35. Ra7 {[%emt 0:00:04]} Kf8 {[%emt 0:00:17]} 36. Ra8+ {[%emt 0:00:09]} Kg7 {[%emt 0:00:07] Weighted Error Value: White=0.15 (very precise) /Black=0.14 (very precise)} 1/2-1/2